[Event "Rapid della Domenica"]
[Site "Chess.com"]
[Date "2020.05.10"]
[Round "2"]
[White "crippo"]
[Black "OMatteoWuO"]
[Result "1-0"]
[WhiteElo "1488"]
[BlackElo "1159"]
[TimeControl "720+3"]
[EndTime "6:30:42 PDT"]
[Termination "crippo ha vinto per abbandono"]

1. e4 {[%clk 0:12:02.9]} 1... c5 {[%clk 0:12:01.1]} 2. Nc3 {[%clk 0:12:04]} 2...
Nc6 {[%clk 0:11:58.8]} 3. Nf3 {[%clk 0:12:04.9]} 3... Nf6 {[%clk 0:12:00.4]} 4.
e5 {[%clk 0:12:06]} 4... Ng4 {[%clk 0:11:19.8]} 5. Bb5 {[%clk 0:12:01.9]} 5...
Ncxe5 {[%clk 0:11:06.6]} 6. O-O {[%clk 0:12:01]} 6... a6 {[%clk 0:10:56.7]} 7.
Be2 {[%clk 0:11:58.7]} 7... d6 {[%clk 0:10:52.7]} 8. d4 {[%clk 0:11:56.9]} 8...
Nxf3+ {[%clk 0:10:53.4]} 9. Bxf3 {[%clk 0:11:57.6]} 9... Nf6 {[%clk 0:10:54.7]}
10. Bg5 {[%clk 0:11:57.6]} 10... cxd4 {[%clk 0:10:48]} 11. Qxd4 {[%clk
0:11:58.4]} 11... e5 {[%clk 0:10:48.9]} 12. Qh4 {[%clk 0:11:58.7]} 12... Be7
{[%clk 0:10:43]} 13. Rad1 {[%clk 0:11:52.8]} 13... h6 {[%clk 0:10:27.4]} 14.
Rfe1 {[%clk 0:11:42.4]} 14... Nh7 {[%clk 0:10:27.7]} 15. Bxe7 {[%clk 0:11:41.2]}
15... Qxe7 {[%clk 0:10:28.3]} 16. Qg3 {[%clk 0:11:36.1]} 16... Ng5 {[%clk
0:10:21.9]} 17. Nd5 {[%clk 0:11:36.6]} 17... Nxf3+ {[%clk 0:10:09.9]} 18. gxf3
{[%clk 0:11:35.6]} 18... Qg5 {[%clk 0:10:06.9]} 19. Qxg5 {[%clk 0:11:33.6]}
19... hxg5 {[%clk 0:10:08]} 20. Nc7+ {[%clk 0:11:35.3]} 20... Ke7 {[%clk
0:10:07.6]} 21. Nxa8 {[%clk 0:11:36.3]} 21... g4 {[%clk 0:09:57.8]} 22. f4
{[%clk 0:11:31.9]} 22... f6 {[%clk 0:09:53.8]} 23. Nb6 {[%clk 0:11:29.8]} 23...
Be6 {[%clk 0:09:47.7]} 24. b3 {[%clk 0:11:28.2]} 24... g5 {[%clk 0:09:40.5]} 25.
fxe5 {[%clk 0:11:28.4]} 25... fxe5 {[%clk 0:09:38.7]} 26. c4 {[%clk 0:11:30.2]}
26... Kf7 {[%clk 0:09:31.8]} 27. Rxd6 {[%clk 0:11:27.1]} 27... Rh3 {[%clk
0:09:15.3]} 28. Rxe5 {[%clk 0:11:22.1]} 28... Rh6 {[%clk 0:08:50.9]} 29. Rxg5
{[%clk 0:11:15.2]} 29... g3 {[%clk 0:08:41.4]} 30. fxg3 {[%clk 0:11:11.6]} 30...
Rf6 {[%clk 0:08:32.8]} 31. Re5 {[%clk 0:11:09.2]} 31... a5 {[%clk 0:08:26.9]}
32. Nd5 {[%clk 0:11:07.3]} 1-0

[Event "Rapid della Domenica"]
[Site "Chess.com"]
[Date "2020.05.10"]
[Round "2"]
[White "GB86_CHESS"]
[Black "laremaro"]
[Result "0-1"]
[WhiteElo "1695"]
[BlackElo "1641"]
[TimeControl "720+3"]
[EndTime "6:32:57 PDT"]
[Termination "laremaro ha vinto per abbandono"]

1. c4 {[%clk 0:11:45.1]} 1... Nf6 {[%clk 0:11:34.5]} 2. g3 {[%clk 0:11:46.6]}
2... c6 {[%clk 0:11:27.5]} 3. d4 {[%clk 0:11:45.7]} 3... d5 {[%clk 0:11:29.5]}
4. Nc3 {[%clk 0:11:45.7]} 4... dxc4 {[%clk 0:11:15.3]} 5. e3 {[%clk 0:11:29.6]}
5... Bg4 {[%clk 0:11:04.8]} 6. Qa4 {[%clk 0:11:22.4]} 6... b5 {[%clk 0:10:38.2]}
7. Nxb5 {[%clk 0:11:09.8]} 7... cxb5 {[%clk 0:10:35.7]} 8. Qxb5+ {[%clk
0:11:11.8]} 8... Bd7 {[%clk 0:10:31.4]} 9. Qxc4 {[%clk 0:11:13.6]} 9... Nc6
{[%clk 0:10:30.2]} 10. Bg2 {[%clk 0:11:15.5]} 10... Rc8 {[%clk 0:10:30.5]} 11.
Bd2 {[%clk 0:11:06.1]} 11... e5 {[%clk 0:10:11.1]} 12. d5 {[%clk 0:10:31.4]}
12... Nd4 {[%clk 0:10:04.6]} 13. Qd3 {[%clk 0:10:08.3]} 13... Nc2+ {[%clk
0:09:49.2]} 14. Ke2 {[%clk 0:10:10.2]} 14... Nxa1 {[%clk 0:09:46]} 15. Nh3
{[%clk 0:10:11.7]} 15... Nc2 {[%clk 0:09:47.4]} 16. Rc1 {[%clk 0:10:12.4]} 16...
Nb4 {[%clk 0:09:38.7]} 17. Rxc8 {[%clk 0:10:13.4]} 17... Qxc8 {[%clk 0:09:30.8]}
18. Bxb4 {[%clk 0:10:11.4]} 18... Bxb4 {[%clk 0:09:27]} 19. a3 {[%clk
0:10:03.2]} 19... Bd6 {[%clk 0:09:13.2]} 20. Ng5 {[%clk 0:09:40.4]} 20... h6
{[%clk 0:09:05.3]} 21. Ne4 {[%clk 0:09:39]} 21... Nxe4 {[%clk 0:09:01]} 22. Qxe4
{[%clk 0:09:41]} 22... O-O {[%clk 0:08:59]} 23. b4 {[%clk 0:09:36.9]} 23... f5
{[%clk 0:08:57.5]} 24. Qd3 {[%clk 0:09:23.4]} 24... a6 {[%clk 0:08:53.3]} 25.
Qb3 {[%clk 0:09:16.6]} 25... Bb5+ {[%clk 0:08:48.8]} 26. Kd2 {[%clk 0:09:17.1]}
26... Qc4 {[%clk 0:08:46.9]} 27. Qxc4 {[%clk 0:09:08.2]} 27... Bxc4 {[%clk
0:08:47.7]} 28. Kc3 {[%clk 0:09:10.3]} 28... Bb5 {[%clk 0:08:46.3]} 29. Bh3
{[%clk 0:09:09.5]} 29... g6 {[%clk 0:08:43.3]} 30. f3 {[%clk 0:09:08.8]} 30...
Rc8+ {[%clk 0:08:41.4]} 31. Kb2 {[%clk 0:09:09.8]} 31... Rc7 {[%clk 0:08:33.5]}
32. e4 {[%clk 0:09:11.7]} 32... fxe4 {[%clk 0:08:30.4]} 33. fxe4 {[%clk
0:09:13.6]} 33... Bd3 {[%clk 0:08:30.3]} 34. Be6+ {[%clk 0:09:13.1]} 34... Kg7
{[%clk 0:08:30]} 35. Kb3 {[%clk 0:09:15.4]} 35... Bxe4 {[%clk 0:08:27]} 36. a4
{[%clk 0:09:17.3]} 36... Rb7 {[%clk 0:08:24.3]} 37. b5 {[%clk 0:09:15.9]} 37...
axb5 {[%clk 0:08:25.8]} 38. axb5 {[%clk 0:09:17.4]} 38... Rxb5+ {[%clk
0:08:27.6]} 39. Kc4 {[%clk 0:09:19.6]} 39... Rc5+ {[%clk 0:08:24.7]} 40. Kb3
{[%clk 0:09:19.9]} 40... Bxd5+ {[%clk 0:08:23.2]} 0-1

[Event "Rapid della Domenica"]
[Site "Chess.com"]
[Date "2020.05.10"]
[Round "2"]
[White "ferrariand"]
[Black "sirmale49"]
[Result "0-1"]
[WhiteElo "1539"]
[BlackElo "1384"]
[TimeControl "720+3"]
[EndTime "6:34:44 PDT"]
[Termination "sirmale49 ha vinto per abbandono"]

1. e4 {[%clk 0:11:16.8]} 1... d5 {[%clk 0:11:53]} 2. exd5 {[%clk 0:11:17]} 2...
Qxd5 {[%clk 0:11:54.1]} 3. Nc3 {[%clk 0:11:18]} 3... Qd6 {[%clk 0:11:55.2]} 4.
d4 {[%clk 0:11:19.2]} 4... c6 {[%clk 0:11:56.1]} 5. Nf3 {[%clk 0:11:19.7]} 5...
Bg4 {[%clk 0:11:55.8]} 6. Be2 {[%clk 0:11:21.1]} 6... Nf6 {[%clk 0:11:56.7]} 7.
O-O {[%clk 0:11:21.8]} 7... Nbd7 {[%clk 0:11:55.7]} 8. h3 {[%clk 0:11:22.7]}
8... Bf5 {[%clk 0:11:56]} 9. Be3 {[%clk 0:11:02.9]} 9... e6 {[%clk 0:11:53.4]}
10. Qd2 {[%clk 0:10:57.7]} 10... Ne4 {[%clk 0:11:50.7]} 11. Nxe4 {[%clk
0:10:57.3]} 11... Bxe4 {[%clk 0:11:51.9]} 12. Rfd1 {[%clk 0:10:38.8]} 12... Nb6
{[%clk 0:11:28.6]} 13. Bf4 {[%clk 0:10:32.8]} 13... Qd5 {[%clk 0:10:57]} 14. b3
{[%clk 0:10:10.1]} 14... Be7 {[%clk 0:10:18.6]} 15. c4 {[%clk 0:10:09.3]} 15...
Qf5 {[%clk 0:10:18.6]} 16. Nh4 {[%clk 0:09:20.2]} 16... Qf6 {[%clk 0:09:59.2]}
17. Be5 {[%clk 0:09:13.3]} 17... Qxh4 {[%clk 0:09:56.6]} 18. Bxg7 {[%clk
0:09:10.8]} 18... Rg8 {[%clk 0:09:53.4]} 19. Qh6 {[%clk 0:07:25.9]} 19... Qxh6
{[%clk 0:09:50.3]} 20. Bxh6 {[%clk 0:07:26.4]} 20... Rxg2+ {[%clk 0:09:48.5]}
21. Kf1 {[%clk 0:07:26.8]} 21... Rg6 {[%clk 0:09:48.2]} 22. Bf4 {[%clk
0:07:19.7]} 22... Bg2+ {[%clk 0:09:43.4]} 23. Ke1 {[%clk 0:07:19]} 23... Bxh3
{[%clk 0:09:43.9]} 24. Rac1 {[%clk 0:07:00.6]} 24... Bg4 {[%clk 0:09:31.2]} 25.
f3 {[%clk 0:06:54.7]} 25... Bf5 {[%clk 0:09:18.2]} 26. c5 {[%clk 0:06:41.6]}
26... Nd5 {[%clk 0:09:14.7]} 27. Be5 {[%clk 0:06:22.9]} 27... Bh4+ {[%clk
0:09:07.7]} 28. Kd2 {[%clk 0:06:19.8]} 28... Bg5+ {[%clk 0:09:03.3]} 29. Ke1
{[%clk 0:06:07.3]} 29... Ne3 {[%clk 0:08:58.3]} 0-1

[Event "Rapid della Domenica"]
[Site "Chess.com"]
[Date "2020.05.10"]
[Round "2"]
[White "fisherpez"]
[Black "Carbon"]
[Result "0-1"]
[WhiteElo "1604"]
[BlackElo "1761"]
[TimeControl "720+3"]
[EndTime "6:36:39 PDT"]
[Termination "Carbon ha vinto per scaccomatto"]

1. e3 {[%clk 0:12:02.9]} 1... d5 {[%clk 0:11:52.1]} 2. b3 {[%clk 0:11:42.3]}
2... Nf6 {[%clk 0:11:47.4]} 3. Bb2 {[%clk 0:11:44.1]} 3... g6 {[%clk 0:11:48.6]}
4. Nc3 {[%clk 0:11:44.5]} 4... Bg7 {[%clk 0:11:47.9]} 5. Be2 {[%clk 0:11:46.8]}
5... O-O {[%clk 0:11:45.3]} 6. h4 {[%clk 0:11:47.5]} 6... h5 {[%clk 0:11:39.7]}
7. Nf3 {[%clk 0:11:48.3]} 7... c5 {[%clk 0:11:38.3]} 8. Nh2 {[%clk 0:11:50]}
8... Nc6 {[%clk 0:11:30.8]} 9. Rg1 {[%clk 0:11:51]} 9... Bf5 {[%clk 0:11:12.9]}
10. g4 {[%clk 0:11:49.8]} 10... hxg4 {[%clk 0:11:11.7]} 11. Nxg4 {[%clk
0:11:51.3]} 11... Nb4 {[%clk 0:11:03.3]} 12. d3 {[%clk 0:11:05.3]} 12... c4
{[%clk 0:10:53.7]} 13. a3 {[%clk 0:11:01.1]} 13... cxd3 {[%clk 0:10:53.9]} 14.
Bxd3 {[%clk 0:10:46.2]} 14... Nxd3+ {[%clk 0:10:46.1]} 15. cxd3 {[%clk
0:10:46.9]} 15... Bxg4 {[%clk 0:10:46.1]} 16. Rxg4 {[%clk 0:10:48.2]} 16... Nxg4
{[%clk 0:10:45.8]} 17. Qxg4 {[%clk 0:10:49.8]} 17... Qc8 {[%clk 0:10:40.7]} 18.
Qxc8 {[%clk 0:09:54.3]} 18... Raxc8 {[%clk 0:10:38.1]} 19. d4 {[%clk 0:09:56.3]}
19... e6 {[%clk 0:10:21.9]} 20. Kd2 {[%clk 0:09:55.1]} 20... Rc6 {[%clk
0:10:23]} 21. f4 {[%clk 0:09:25.2]} 21... Rfc8 {[%clk 0:10:20.6]} 22. b4 {[%clk
0:09:10.7]} 22... Bf6 {[%clk 0:09:54.9]} 23. Rh1 {[%clk 0:09:10.5]} 23... Kg7
{[%clk 0:09:56]} 24. b5 {[%clk 0:08:55.8]} 24... Rc4 {[%clk 0:09:53.1]} 25. h5
{[%clk 0:08:33.6]} 25... Rh8 {[%clk 0:09:45.2]} 26. Ne2 {[%clk 0:08:08.2]} 26...
Rxh5 {[%clk 0:09:32.5]} 27. Rg1 {[%clk 0:08:06.3]} 27... Rh2 {[%clk 0:09:28.5]}
28. Re1 {[%clk 0:08:05.7]} 28... Bh4 {[%clk 0:09:22.7]} 29. Rb1 {[%clk
0:07:59.1]} 29... Be7 {[%clk 0:08:50.3]} 30. Kd3 {[%clk 0:07:58]} 30... g5
{[%clk 0:08:19.9]} 31. Rg1 {[%clk 0:07:54.7]} 31... Rxe2 {[%clk 0:08:08.9]} 32.
Kxe2 {[%clk 0:07:47.9]} 32... Rc2+ {[%clk 0:08:10.3]} 33. Kf3 {[%clk 0:07:50.1]}
33... Rxb2 {[%clk 0:08:09.6]} 34. fxg5 {[%clk 0:07:52]} 34... Rxb5 {[%clk
0:08:09.9]} 35. Rc1 {[%clk 0:07:53.1]} 35... Bxg5 {[%clk 0:08:04.4]} 36. Rc7
{[%clk 0:07:54.7]} 36... Rb3 {[%clk 0:07:57.6]} 37. Kg4 {[%clk 0:07:54.7]} 37...
Bxe3 {[%clk 0:07:56.1]} 38. a4 {[%clk 0:07:56.6]} 38... Bxd4 {[%clk 0:07:53.9]}
39. a5 {[%clk 0:07:58.5]} 39... Rg3+ {[%clk 0:07:46.1]} 40. Kf4 {[%clk
0:07:48.9]} 40... Rb3 {[%clk 0:07:47.3]} 41. a6 {[%clk 0:07:48.3]} 41... bxa6
{[%clk 0:07:45.7]} 42. Rc6 {[%clk 0:07:49]} 42... a5 {[%clk 0:07:37.8]} 43. Kg4
{[%clk 0:07:48.2]} 43... a4 {[%clk 0:07:35.9]} 44. Ra6 {[%clk 0:07:49.7]} 44...
a3 {[%clk 0:07:37.1]} 45. Kf4 {[%clk 0:07:50.3]} 45... Bb2 {[%clk 0:07:30.5]}
46. Kg4 {[%clk 0:07:51.1]} 46... d4 {[%clk 0:07:24.5]} 47. Kf4 {[%clk
0:07:53.2]} 47... d3 {[%clk 0:07:25.3]} 48. Ke3 {[%clk 0:07:55.5]} 48... Bc1+
{[%clk 0:07:24.9]} 49. Kf2 {[%clk 0:07:54.7]} 49... d2 {[%clk 0:07:22.8]} 50.
Ke2 {[%clk 0:07:56.5]} 50... Re3+ {[%clk 0:07:19.5]} 51. Kxe3 {[%clk 0:07:57.6]}
51... d1=Q+ {[%clk 0:07:19.9]} 52. Ke4 {[%clk 0:07:56.3]} 52... Qd5# {[%clk
0:07:16]} 0-1

[Event "Rapid della Domenica"]
[Site "Chess.com"]
[Date "2020.05.10"]
[Round "2"]
[White "Simo2005"]
[Black "BAKR1980"]
[Result "0-1"]
[WhiteElo "1712"]
[BlackElo "1675"]
[TimeControl "720+3"]
[EndTime "6:39:21 PDT"]
[Termination "BAKR1980 ha vinto per abbandono"]

1. e4 {[%clk 0:12:02.2]} 1... Nc6 {[%clk 0:11:43.9]} 2. d4 {[%clk 0:11:48]} 2...
d5 {[%clk 0:11:26.4]} 3. e5 {[%clk 0:11:29.1]} 3... f6 {[%clk 0:11:20.1]} 4. Nf3
{[%clk 0:11:12.3]} 4... fxe5 {[%clk 0:11:11.5]} 5. dxe5 {[%clk 0:10:38]} 5... e6
{[%clk 0:11:05.3]} 6. Bb5 {[%clk 0:10:24.1]} 6... Ne7 {[%clk 0:10:57.7]} 7. Bg5
{[%clk 0:09:34.4]} 7... h6 {[%clk 0:10:51]} 8. Bh4 {[%clk 0:09:29]} 8... g5
{[%clk 0:10:45.1]} 9. Bg3 {[%clk 0:09:26.3]} 9... Bg7 {[%clk 0:10:33.3]} 10. Nc3
{[%clk 0:09:16.7]} 10... O-O {[%clk 0:10:27.1]} 11. Qd2 {[%clk 0:09:06.5]} 11...
Nf5 {[%clk 0:10:19.1]} 12. Bxc6 {[%clk 0:08:32.1]} 12... bxc6 {[%clk 0:10:11.3]}
13. O-O-O {[%clk 0:08:27]} 13... c5 {[%clk 0:10:03.8]} 14. h4 {[%clk 0:07:55.7]}
14... Nxg3 {[%clk 0:09:54.9]} 15. fxg3 {[%clk 0:07:44.2]} 15... g4 {[%clk
0:09:48.1]} 16. Nh2 {[%clk 0:07:17.4]} 16... h5 {[%clk 0:09:42]} 17. Ne4 {[%clk
0:06:41.5]} 17... Qe7 {[%clk 0:09:28.6]} 18. Ng5 {[%clk 0:06:20.6]} 18... Bxe5
{[%clk 0:09:15]} 19. Qe3 {[%clk 0:05:56.3]} 19... Qg7 {[%clk 0:09:00.8]} 20. Qa3
{[%clk 0:04:35.9]} 20... Rb8 {[%clk 0:08:43]} 21. c3 {[%clk 0:04:31.6]} 21...
Rf2 {[%clk 0:08:34.5]} 22. Rd2 {[%clk 0:04:15.5]} 22... Rxd2 {[%clk 0:08:28.8]}
23. Kxd2 {[%clk 0:04:12.9]} 23... Bxg3 {[%clk 0:08:22.4]} 24. Nf1 {[%clk
0:03:40]} 24... Bxh4 {[%clk 0:08:16.3]} 25. Qxc5 {[%clk 0:02:45.9]} 25... Bxg5+
{[%clk 0:08:03.6]} 26. Kc2 {[%clk 0:02:19.1]} 26... Qg6+ {[%clk 0:07:56.2]} 27.
Kd1 {[%clk 0:02:15.9]} 27... Qb1+ {[%clk 0:07:52]} 0-1

[Event "Rapid della Domenica"]
[Site "Chess.com"]
[Date "2020.05.10"]
[Round "2"]
[White "fausto2p"]
[Black "Mrtre7"]
[Result "0-1"]
[WhiteElo "1099"]
[BlackElo "1427"]
[TimeControl "720+3"]
[EndTime "6:39:34 PDT"]
[Termination "Mrtre7 ha vinto per abbandono"]

1. d4 {[%clk 0:12:02.9]} 1... d5 {[%clk 0:12:00.9]} 2. c4 {[%clk 0:12:04.5]}
2... c6 {[%clk 0:12:02.1]} 3. Nc3 {[%clk 0:12:04.6]} 3... e6 {[%clk 0:12:01.5]}
4. Nf3 {[%clk 0:12:05.3]} 4... dxc4 {[%clk 0:12:01.2]} 5. a4 {[%clk 0:12:02.5]}
5... Bb4 {[%clk 0:12:01.8]} 6. e3 {[%clk 0:11:53.7]} 6... b5 {[%clk 0:11:29.7]}
7. axb5 {[%clk 0:11:43.5]} 7... cxb5 {[%clk 0:11:28.1]} 8. Bd2 {[%clk
0:11:32.5]} 8... Bxc3 {[%clk 0:11:14.3]} 9. Bxc3 {[%clk 0:11:27]} 9... Nf6
{[%clk 0:11:02.9]} 10. g3 {[%clk 0:11:16.1]} 10... Bb7 {[%clk 0:11:03.3]} 11.
Bg2 {[%clk 0:11:16.3]} 11... O-O {[%clk 0:11:01.5]} 12. O-O {[%clk 0:11:17.1]}
12... Nbd7 {[%clk 0:11:00.3]} 13. b3 {[%clk 0:10:38.2]} 13... a5 {[%clk
0:10:24.5]} 14. bxc4 {[%clk 0:10:22.5]} 14... b4 {[%clk 0:10:26]} 15. Bb2 {[%clk
0:10:08.5]} 15... Nb6 {[%clk 0:10:12.1]} 16. Ne5 {[%clk 0:09:37]} 16... Bxg2
{[%clk 0:10:10.4]} 17. Kxg2 {[%clk 0:09:34.5]} 17... Rc8 {[%clk 0:09:49.7]} 18.
c5 {[%clk 0:09:27.7]} 18... Qd5+ {[%clk 0:09:50.2]} 19. Kg1 {[%clk 0:09:25.2]}
19... Nc4 {[%clk 0:09:51]} 20. Nxc4 {[%clk 0:09:06.8]} 20... Qxc4 {[%clk
0:09:52.1]} 21. Rxa5 {[%clk 0:09:02.5]} 21... Ra8 {[%clk 0:09:30.4]} 22. Qa4
{[%clk 0:08:48]} 22... Rxa5 {[%clk 0:09:15.8]} 23. Qxa5 {[%clk 0:08:49.1]} 23...
Ne4 {[%clk 0:08:50.1]} 24. Ra1 {[%clk 0:08:44.4]} 24... Qc2 {[%clk 0:08:18.6]}
25. Qxb4 {[%clk 0:06:33.3]} 25... Qxf2+ {[%clk 0:08:17.8]} 26. Kh1 {[%clk
0:06:33.5]} 26... Qf3+ {[%clk 0:08:15.7]} 27. Kg1 {[%clk 0:06:34.2]} 27... Qxe3+
{[%clk 0:08:15.8]} 28. Kh1 {[%clk 0:06:29]} 28... Qf3+ {[%clk 0:05:51.1]} 29.
Kg1 {[%clk 0:06:22.6]} 29... Nf2 {[%clk 0:05:42.1]} 30. Kf1 {[%clk 0:05:22.2]}
30... Nd3+ {[%clk 0:05:09.5]} 31. Kg1 {[%clk 0:05:12.4]} 31... Nxb4 {[%clk
0:05:01.2]} 0-1

[Event "Rapid della Domenica"]
[Site "Chess.com"]
[Date "2020.05.10"]
[Round "2"]
[White "SanSecondoPR"]
[Black "sergiodone"]
[Result "0-1"]
[WhiteElo "1237"]
[BlackElo "1499"]
[TimeControl "720+3"]
[EndTime "6:41:50 PDT"]
[Termination "sergiodone ha vinto per scaccomatto"]

1. e4 {[%clk 0:12:02.9]} 1... c5 {[%clk 0:11:57.4]} 2. d4 {[%clk 0:12:02.2]}
2... cxd4 {[%clk 0:11:57.6]} 3. Nf3 {[%clk 0:12:00.5]} 3... g6 {[%clk
0:11:56.6]} 4. Nxd4 {[%clk 0:11:59.4]} 4... d6 {[%clk 0:11:58.2]} 5. Nc3 {[%clk
0:11:57.9]} 5... Bg7 {[%clk 0:11:59.9]} 6. Nb3 {[%clk 0:11:58.3]} 6... e6 {[%clk
0:12:00.6]} 7. Bb5+ {[%clk 0:11:55]} 7... Nc6 {[%clk 0:11:55.3]} 8. O-O {[%clk
0:11:49.2]} 8... Ne7 {[%clk 0:11:56.2]} 9. Bg5 {[%clk 0:11:43.2]} 9... O-O
{[%clk 0:11:53.3]} 10. Qd2 {[%clk 0:11:33.6]} 10... Re8 {[%clk 0:11:43]} 11.
Rad1 {[%clk 0:11:25.6]} 11... Qc7 {[%clk 0:11:40.5]} 12. Qxd6 {[%clk 0:11:15.6]}
12... Qb6 {[%clk 0:11:18]} 13. Bxc6 {[%clk 0:10:52.6]} 13... Qxc6 {[%clk
0:11:01.5]} 14. Bxe7 {[%clk 0:10:41]} 14... Qxd6 {[%clk 0:08:30.8]} 15. Bxd6
{[%clk 0:10:29.8]} 15... a6 {[%clk 0:08:31.5]} 16. e5 {[%clk 0:10:27.4]} 16...
b5 {[%clk 0:08:32.3]} 17. Ne4 {[%clk 0:10:15.5]} 17... Bb7 {[%clk 0:08:29.1]}
18. Nec5 {[%clk 0:10:12.6]} 18... Bd5 {[%clk 0:08:22.2]} 19. a3 {[%clk
0:09:34.5]} 19... h5 {[%clk 0:08:19]} 20. Na5 {[%clk 0:09:26.9]} 20... h4 {[%clk
0:08:13.6]} 21. b4 {[%clk 0:09:25.1]} 21... h3 {[%clk 0:08:07.9]} 22. f3 {[%clk
0:09:22.1]} 22... Bh6 {[%clk 0:08:07.8]} 23. Ne4 {[%clk 0:09:04.9]} 23... hxg2
{[%clk 0:08:00]} 24. Kxg2 {[%clk 0:08:50.3]} 24... Kg7 {[%clk 0:07:56.1]} 25.
Nf6 {[%clk 0:08:45.5]} 25... Rec8 {[%clk 0:07:50.8]} 26. Nxd5 {[%clk 0:08:41.6]}
26... Rxc2+ {[%clk 0:07:51.7]} 27. Rf2 {[%clk 0:08:21.4]} 27... Rxf2+ {[%clk
0:07:51.8]} 28. Kxf2 {[%clk 0:08:20.3]} 28... exd5 {[%clk 0:07:53.4]} 29. Rxd5
{[%clk 0:08:18.5]} 29... Rc8 {[%clk 0:07:51.3]} 30. Bc5 {[%clk 0:08:11.7]} 30...
Bc1 {[%clk 0:07:45.5]} 31. Rd3 {[%clk 0:08:06.7]} 31... g5 {[%clk 0:07:37.3]}
32. Nb7 {[%clk 0:08:03.4]} 32... Rh8 {[%clk 0:07:26.8]} 33. Kg2 {[%clk
0:07:59.5]} 33... Bf4 {[%clk 0:07:24.5]} 34. h3 {[%clk 0:07:54.4]} 34... Bxe5
{[%clk 0:06:42.1]} 35. Rd5 {[%clk 0:07:33.9]} 35... f6 {[%clk 0:06:25.1]} 36.
Na5 {[%clk 0:07:18.3]} 36... Bb2 {[%clk 0:06:22.4]} 37. Rd3 {[%clk 0:07:05.6]}
37... Re8 {[%clk 0:06:20.1]} 38. Kf1 {[%clk 0:06:55.5]} 38... Kg6 {[%clk
0:06:14.2]} 39. Nc6 {[%clk 0:06:35.7]} 39... Rh8 {[%clk 0:06:02.6]} 40. Kg2
{[%clk 0:06:31.3]} 40... Rh4 {[%clk 0:05:57]} 41. Rb3 {[%clk 0:06:10.6]} 41...
Bc1 {[%clk 0:05:41.9]} 42. Be3 {[%clk 0:05:51.8]} 42... Rc4 {[%clk 0:05:09.7]}
43. Na5 {[%clk 0:05:39.8]} 43... Rc2+ {[%clk 0:05:09.3]} 44. Kg3 {[%clk
0:05:24.5]} 44... f5 {[%clk 0:05:02.9]} 45. Bxc1 {[%clk 0:05:19.1]} 45... Rxc1
{[%clk 0:05:03.6]} 46. Nb7 {[%clk 0:05:11.9]} 46... Rc2 {[%clk 0:05:01.4]} 47.
Nc5 {[%clk 0:05:07.6]} 47... f4+ {[%clk 0:05:02.9]} 48. Kg4 {[%clk 0:04:34.8]}
48... Rg2# {[%clk 0:05:02.8]} 0-1